fUST/lending_fUST_20250219
["ID","MTS","AMOUNT","RATE_DAILY","PERIOD"]
[353620229,1739961042150,-500.0,0.00017,7]
[353620230,1739961042162,-500.0,0.00017,7]
[353620231,1739961042171,-500.0,0.00017,7]
[353620232,1739961042181,-566.69,0.00017,7]
[353620233,1739961042191,-151.0,0.00017,2]
[353620234,1739961042201,-2000.0,0.00017,2]
[353620235,1739961042211,-151.0,0.00017,2]
[353620236,1739961042220,-7438.69753278,0.00017,7]
[353620237,1739961042229,-674.26532336,0.00017,2]
[353620238,1739961042242,-363.02939924,0.00017,2]
[353620239,1739961042251,-500.0,0.00017001,2]
[353620240,1739961042260,-500.0,0.00017101,2]
[353620241,1739961042269,-20998.6791472,0.00017112,2]
[353620242,1739961042279,-484.0,0.00017121,2]
[353620243,1739961042288,-484.0,0.00017121,2]
[353620244,1739961042297,-484.0,0.00017121,2]
[353620245,1739961042307,-484.0,0.00017121,2]
[353620246,1739961042316,-484.0,0.00017121,2]
[353620247,1739961042326,-484.0,0.00017121,2]
[353620248,1739961042336,-484.0,0.00017121,2]
[353620249,1739961042345,-484.0,0.00017121,2]
[353620250,1739961042355,-484.0,0.00017121,2]
[353620251,1739961042364,-484.0,0.00017121,2]
[353620252,1739961042373,-484.0,0.00017121,2]
[353620253,1739961042383,-484.0,0.00017121,2]
[353620254,1739961042393,-484.0,0.00017121,2]
[353620255,1739961042402,-484.0,0.00017121,2]
[353620256,1739961042411,-626.0,0.00017121,2]
[353620257,1739961042421,-626.0,0.00017121,2]
[353620258,1739961042430,-626.0,0.00017121,2]
[353620259,1739961042439,-626.0,0.00017121,2]
[353620260,1739961042449,-626.0,0.00017121,2]
[353620261,1739961042458,-626.0,0.00017121,2]
[353620262,1739961042467,-626.0,0.00017121,2]
[353620263,1739961042477,-626.0,0.00017121,2]
[353620264,1739961042487,-626.0,0.00017121,2]
[353620265,1739961042496,-626.0,0.00017121,2]
[353620266,1739961042505,-626.0,0.00017121,2]
[353620267,1739961042515,-626.0,0.00017121,2]
[353620268,1739961042525,-626.0,0.00017121,2]
[353620269,1739961042535,-626.0,0.00017121,2]
[353620270,1739961042544,-484.0,0.00017122,2]
[353620271,1739961042553,-484.0,0.00017122,2]
[353620272,1739961042563,-484.0,0.00017122,2]
[353620273,1739961042572,-484.0,0.00017122,2]
[353620274,1739961042581,-484.0,0.00017122,2]
[353620275,1739961042591,-484.0,0.00017122,2]
[353620276,1739961042600,-484.0,0.00017122,2]
[353620277,1739961042611,-484.0,0.00017122,2]
[353620278,1739961042620,-484.0,0.00017122,2]
[353620279,1739961042629,-484.0,0.00017122,2]
[353620280,1739961042640,-484.0,0.00017122,2]
[353620281,1739961042652,-484.0,0.00017122,2]
[353620282,1739961042662,-484.0,0.00017122,2]
[353620283,1739961042672,-484.0,0.00017122,2]
[353620284,1739961042681,-626.0,0.00017123,2]
[353620285,1739961042691,-626.0,0.00017123,2]
[353620286,1739961042703,-626.0,0.00017123,2]
[353620287,1739961042713,-626.0,0.00017123,2]
[353620288,1739961042723,-626.0,0.00017123,2]
[353620289,1739961042733,-626.0,0.00017123,2]
[353620290,1739961042744,-626.0,0.00017123,2]
[353620291,1739961042753,-626.0,0.00017123,2]
[353620292,1739961042763,-626.0,0.00017123,2]
[353620293,1739961042772,-626.0,0.00017123,2]
[353620294,1739961042782,-626.0,0.00017123,2]
[353620295,1739961042791,-626.0,0.00017123,2]
[353620296,1739961042801,-626.0,0.00017123,2]
[353620297,1739961042811,-626.0,0.00017123,2]
[353620298,1739961042821,-425.158605,0.00017123,2]
[353620299,1739961042831,-484.0,0.00017123,2]
[353620300,1739961042841,-484.0,0.00017123,2]
[353620301,1739961042851,-484.0,0.00017123,2]
[353620302,1739961042860,-484.0,0.00017123,2]
[353620303,1739961042870,-484.0,0.00017123,2]
[353620304,1739961042880,-484.0,0.00017123,2]
[353620305,1739961042901,-484.0,0.00017123,2]
[353620306,1739961042911,-484.0,0.00017123,2]
[353620307,1739961042921,-484.0,0.00017123,2]
[353620308,1739961042931,-484.0,0.00017123,2]
[353620309,1739961042941,-484.0,0.00017123,2]
[353620310,1739961042950,-484.0,0.00017123,2]
[353620311,1739961042960,-484.0,0.00017123,2]
[353620313,1739961042970,-484.0,0.00017123,2]
[353620314,1739961042979,-626.0,0.00017124,2]
[353620315,1739961042989,-626.0,0.00017124,2]
[353620316,1739961042999,-626.0,0.00017124,2]
[353620317,1739961043009,-626.0,0.00017124,2]
[353620318,1739961043019,-626.0,0.00017124,2]
[353620319,1739961043028,-626.0,0.00017124,2]
[353620320,1739961043038,-626.0,0.00017124,2]
[353620321,1739961043047,-626.0,0.00017124,2]
[353620322,1739961043057,-626.0,0.00017124,2]
[353620323,1739961043066,-626.0,0.00017124,2]
[353620324,1739961043075,-626.0,0.00017124,2]
[353620325,1739961043084,-626.0,0.00017124,2]
[353620326,1739961043095,-626.0,0.00017124,2]
[353620327,1739961043106,-626.0,0.00017124,2]
[353620328,1739961043115,-484.0,0.00017129,2]
[353620330,1739961043125,-484.0,0.00017129,2]
[353620332,1739961043135,-484.0,0.00017129,2]
[353620333,1739961043144,-484.0,0.00017129,2]
[353620334,1739961043154,-484.0,0.00017129,2]
[353620335,1739961043168,-484.0,0.00017129,2]
[353620336,1739961043177,-484.0,0.00017129,2]
[353620337,1739961043186,-484.0,0.00017129,2]
[353620338,1739961043196,-484.0,0.00017129,2]
[353620339,1739961043207,-484.0,0.00017129,2]
[353620340,1739961043216,-484.0,0.00017129,2]
[353620341,1739961043226,-484.0,0.00017129,2]
[353620342,1739961043235,-484.0,0.00017129,2]
[353620343,1739961043246,-626.0,0.00017129,2]
[353620344,1739961043255,-626.0,0.00017129,2]
[353620345,1739961043265,-626.0,0.00017129,2]
[353620346,1739961043275,-626.0,0.00017129,2]
[353620347,1739961043284,-626.0,0.00017129,2]
[353620348,1739961043294,-626.0,0.00017129,2]
[353620349,1739961043303,-626.0,0.00017129,2]
[353620350,1739961043312,-626.0,0.00017129,2]
[353620351,1739961043322,-626.0,0.00017129,2]
[353620352,1739961043331,-626.0,0.00017129,2]
[353620354,1739961043340,-626.0,0.00017129,2]
[353620356,1739961043350,-626.0,0.00017129,2]
[353620357,1739961043359,-626.0,0.00017129,2]
[353620358,1739961043369,-823.0,0.00017145,2]
[353620359,1739961043379,-151.0,0.000172,2]
[353620360,1739961043390,-3433.48095082,0.000172,2]
[353620361,1739961043399,-500.0,0.00017201,2]
[353620362,1739961043409,-20998.6791472,0.0001729,2]
[353620363,1739961043419,-151.0,0.000173,2]
[353620364,1739961043429,-151.0,0.000173,2]
[353620365,1739961043438,-500.0,0.00017301,2]
[353620366,1739961043448,-151.0,0.000174,2]
[353620367,1739961043458,-500.0,0.00017401,2]
[353620368,1739961043468,-1971.0,0.0001742,2]
[353620369,1739961043478,-538.0,0.0001742,2]
[353620370,1739961043487,-250.81388586,0.0001742,2]
[353620372,1739961044400,-531.48853756,0.0001742,2]
[353620373,1739961044423,-1507.69757658,0.0001742,2]
[353620374,1739961044433,-396.0,0.0001742,2]
[353620375,1739961044443,-165.48895109,0.000175,2]
[353620376,1739961044453,-165.48,0.000175,2]
[353620377,1739961044463,-3000.0,0.000175,2]
[353620378,1739961044472,-3935.24932291,0.000175,2]
[353620379,1739961044618,-39.02086952,0.00013698,2]
[353620388,1739961533771,259.085608,9.041e-05,2]
[353620391,1739962045123,-250.0,0.00011695,2]
[353620392,1739962045144,-250.0,0.00011813,2]
[353620393,1739962045164,-118.22242743,0.00011992,2]
[353620394,1739962160080,-300.0,0.00010958,2]
[353620395,1739962160100,-7393.86,0.00010959,2]
[353620396,1739962160271,-6161.55,0.00010959,2]
[353620397,1739962160293,-5134.62,0.00010959,2]
[353620398,1739962160314,-370.69373814,0.00010959,2]
[353620399,1739962170115,-3908.15626186,0.00010959,2]
[353620400,1739962170137,-3565.71,0.00010959,2]
[353620401,1739962170160,-2971.43,0.00010959,2]
[353620402,1739962170182,-2476.19,0.00010959,2]
[353620403,1739962170204,-2063.49,0.00010959,2]
[353620404,1739962170227,-322.89925547,0.00011753,2]
[353620405,1739962170250,-322.89925547,0.00011872,2]
[353620406,1739962170272,-322.89925547,0.00011992,2]
[353620407,1739962170295,-420.0,0.00012042,2]
[353620408,1739962170317,-250.0,0.00012423,2]
[353620409,1739962170339,-151.0,0.00012604,2]
[353620410,1739962170360,-500.0,0.00012609,2]
[353620411,1739962170384,-500.0,0.00012609,2]
[353620412,1739962170408,-500.0,0.00012609,2]
[353620413,1739962170430,-500.0,0.00012609,2]
[353620414,1739962170456,-500.0,0.00012609,2]
[353620415,1739962170480,-500.0,0.00012609,2]
[353620416,1739962170502,-500.0,0.00012609,2]
[353620417,1739962170523,-500.0,0.00012609,2]
[353620418,1739962170546,-256.93576683,0.00012609,2]
[353620419,1739962170571,-500.0,0.00012609,2]
[353620420,1739962170595,-500.0,0.00012609,2]
[353620421,1739962170616,-385.11198707,0.00012609,2]
[353620422,1739962170639,-500.0,0.00012609,2]
[353620423,1739962170662,-500.0,0.00012609,2]
[353620424,1739962170683,-500.0,0.00012609,2]
[353620425,1739962170704,-500.0,0.00012609,2]
[353620426,1739962170727,-500.0,0.00012609,2]
[353620427,1739962170749,-500.0,0.00012609,2]
[353620428,1739962170771,-500.0,0.00012609,2]
[353620429,1739962170793,-500.0,0.00012609,2]
[353620430,1739962170815,-500.0,0.00012609,2]
[353620431,1739962170838,-500.0,0.00012609,2]
[353620432,1739962170860,-500.0,0.00012609,2]
[353620433,1739962170883,-500.0,0.00012609,2]
[353620434,1739962170907,-500.0,0.00012609,2]
[353620435,1739962170929,-500.0,0.00012609,2]
[353620436,1739962170953,-500.0,0.00012609,2]
[353620437,1739962170976,-500.0,0.00012609,2]
[353620438,1739962171000,-500.0,0.00012609,2]
[353620439,1739962171022,-472.02700585,0.00012609,2]
[353620465,1739962232667,-1719.58,0.00010849,2]
[353620468,1739962232679,-300.0,0.00010958,2]
[353620470,1739962232690,-1719.58,0.00010959,2]
[353620472,1739962232701,-1432.98,0.00010959,2]
[353620474,1739962232715,-420.0,0.00012042,2]
[353620477,1739962232727,-188.28099591,0.00012483,2]
[353620479,1739962232738,-151.0,0.00012604,2]
[353620481,1739962232750,-500.0,0.00012609,2]
[353620483,1739962232761,-256.75466071,0.00012609,2]
[353620485,1739962232771,-24900.0,0.00012611,2]
[353620487,1739962232780,-197.56344082,0.00012769,2]
[353620489,1739962232791,-168.92942208,0.000129,2]
[353620492,1739962232803,-690.11034183,0.00013068,2]
[353620494,1739962232816,-9.88965817,0.00013068,2]
[353620496,1739962232827,-277.76646851,0.00013152,2]
[353620498,1739962232839,-587.0,0.00013233,2]
[353620499,1739962232850,-4983.8172981,0.00013461,2]
[353620500,1739962232875,-0.72868946,0.00013461,2]
[353620501,1739962232887,-418.59961185,0.00013461,2]
[353620502,1739962232896,-209.058772,0.00013461,2]
[353620515,1739962238500,-153.9013319,0.0001261,2]
[353620518,1739962238512,-500.0,0.0001261,2]
[353620520,1739962238523,-500.0,0.0001261,2]
[353620522,1739962238535,-500.0,0.0001261,2]
[353620524,1739962238546,-500.0,0.0001261,2]
[353620526,1739962238558,-528.52829563,0.0001261,2]
[353620528,1739962238569,-303.58064477,0.0001261,2]
[353620530,1739962238583,-500.0,0.0001261,2]
[353620532,1739962238594,-500.0,0.0001261,2]
[353620535,1739962238604,-500.0,0.0001261,2]
[353620537,1739962238616,-500.0,0.0001261,2]
[353620539,1739962238628,-500.0,0.0001261,2]
[353620541,1739962238638,-500.0,0.0001261,2]
[353620543,1739962238649,-500.0,0.0001261,2]
[353620545,1739962238661,-500.0,0.0001261,2]
[353620547,1739962238671,-500.0,0.0001261,2]
[353620549,1739962238682,-500.0,0.0001261,2]
[353620551,1739962238693,-500.0,0.0001261,2]
[353620554,1739962238704,-500.0,0.0001261,2]
[353620556,1739962238716,-500.0,0.0001261,2]
[353620558,1739962238727,-500.0,0.0001261,2]
[353620560,1739962238738,-632.94104067,0.0001261,2]
[353620562,1739962238751,-2738.38815979,0.00013461,2]
[353620564,1739962238762,-152.0,0.000135,2]
[353620566,1739962238773,-610.26514134,0.00013586,2]
[353620569,1739962238785,-16605.0376414,0.00013587,2]
[353620580,1739962238943,-500.0,0.00013697,2]
[353620581,1739962238957,-341.87483045,0.00013697,2]
[353620582,1739962238969,-500.0,0.00013698,2]
[353620583,1739962238978,-538.04,0.00013698,2]
[353620584,1739962238987,-500.0,0.00013698,2]
[353620585,1739962238997,-336.83164361,0.00013698,2]
[353620586,1739962239006,-500.0,0.00013698,2]
[353620587,1739962239016,-526.53740091,0.00013698,2]
[353620588,1739962239026,-500.0,0.00013698,2]
[353620589,1739962239035,-500.0,0.00013698,2]
[353620590,1739962239045,-308.92749742,0.00013698,2]
[353620591,1739962239055,-507.48694895,0.00013698,2]
[353620592,1739962239065,-610.32,0.00013698,2]
[353620593,1739962239074,-500.0,0.00013698,2]
[353620594,1739962239084,-500.0,0.00013698,2]
[353620595,1739962239095,-500.0,0.00013698,2]
[353620596,1739962239106,-501.40273484,0.00013698,2]
[353620597,1739962239116,-572.01,0.00013698,2]
[353620598,1739962239127,-331.09786974,0.00013698,2]
[353620599,1739962239137,-500.0,0.00013698,2]
[353620600,1739962239147,-500.0,0.00013698,2]
[353620601,1739962239156,-500.0,0.00013698,2]
[353620602,1739962239166,-500.0,0.00013698,2]
[353620603,1739962239175,-500.0,0.00013698,2]
[353620604,1739962239185,-500.0,0.00013698,2]
[353620605,1739962239194,-500.0,0.00013698,2]
[353620606,1739962239204,-502.93339405,0.00013698,2]
[353620607,1739962239214,-500.0,0.00013698,2]
[353620608,1739962239223,-556.59,0.00013698,2]
[353620609,1739962239233,-500.0,0.00013698,2]
[353620610,1739962239243,-500.0,0.00013698,2]
[353620611,1739962239252,-507.08258504,0.00013698,2]
[353620612,1739962239262,-500.0,0.00013698,2]
[353620613,1739962239271,-1875.75,0.00013698,2]
[353620614,1739962239281,-347.98892053,0.00013698,2]
[353620615,1739962239290,-500.0,0.00013698,2]
[353620616,1739962239300,-500.0,0.00013698,2]
[353620617,1739962239310,-1268.03,0.00013698,2]
[353620618,1739962239320,-500.0,0.00013698,2]
[353620619,1739962239329,-500.0,0.00013698,2]
[353620620,1739962239339,-503.24012047,0.00013698,2]
[353620621,1739962239349,-500.0,0.00013698,2]
[353620622,1739962239359,-500.0,0.00013698,2]
[353620623,1739962239368,-500.0,0.00013698,2]
[353620624,1739962239378,-502.01130652,0.00013698,2]
[353620625,1739962239387,-500.0,0.00013698,2]
[353620626,1739962239396,-500.0,0.00013698,2]
[353620627,1739962239406,-241.06952807,0.00013698,2]
[353620628,1739962239415,-510.3607657,0.00013698,2]
[353620629,1739962239425,-500.0,0.00013698,2]
[353620630,1739962239434,-501.55162441,0.00013698,2]
[353620631,1739962239444,-502.6029922,0.00013698,2]
[353620632,1739962239453,-500.0,0.00013698,2]
[353620633,1739962239462,-500.0,0.00013698,2]
[353620634,1739962239471,-501.50148614,0.00013698,2]
[353620635,1739962239480,-462.87310013,0.00013698,2]
[353620636,1739962239490,-500.96040732,0.00013698,2]
[353620637,1739962239499,-500.0,0.00013698,2]
[353620638,1739962239509,-971.062633,0.00013699,2]
[353620639,1739962239519,-340.126884,0.00013699,2]
[353620640,1739962239528,-180.0,0.00013699,2]
[353620641,1739962239538,-158.9258305,0.00013699,2]
[353620642,1739962239548,-500.0,0.0001378,2]
[353620643,1739962239558,-500.0,0.0001378,2]
[353620644,1739962239567,-610.32,0.0001378,2]
[353620645,1739962239579,-500.0,0.0001378,2]
[353620646,1739962239589,-500.0,0.0001378,2]
[353620647,1739962239598,-500.0,0.0001378,2]
[353620648,1739962239607,-500.0,0.0001378,2]
[353620649,1739962239617,-500.0,0.0001378,2]
[353620650,1739962239628,-295.66700864,0.0001378,2]
[353620651,1739962239637,-500.0,0.0001378,2]
[353620652,1739962239646,-500.0,0.0001378,2]
[353620653,1739962239658,-500.0,0.0001378,2]
[353620654,1739962239668,-500.0,0.0001378,2]
[353620655,1739962239678,-500.0,0.0001378,2]
[353620656,1739962239688,-1875.75,0.0001378,2]
[353620657,1739962239698,-500.0,0.0001378,2]
[353620658,1739962239708,-1268.03,0.0001378,2]
[353620659,1739962239718,-500.0,0.0001378,2]
[353620660,1739962239727,-500.0,0.0001378,2]
[353620661,1739962239737,-500.0,0.0001378,2]
[353620662,1739962239746,-500.0,0.0001378,2]
[353620663,1739962239755,-500.0,0.0001378,2]
[353620664,1739962239765,-168.92942206,0.00013858,2]
[353620665,1739962239775,-205.33839763,0.00013863,2]
[353620666,1739962239784,-92.13241217,0.00013863,2]
[353620667,1739962239798,-407.86758783,0.00013863,2]
[353620668,1739962239808,-610.32,0.00013863,2]
[353620669,1739962239817,-500.0,0.00013863,2]
[353620670,1739962239826,-500.0,0.00013863,2]
[353620671,1739962239836,-500.0,0.00013863,2]
[353620672,1739962239845,-501.04671559,0.00013863,2]
[353620673,1739962239855,-500.0,0.00013863,2]
[353620674,1739962239864,-500.0,0.00013863,2]
[353620675,1739962239875,-500.0,0.00013863,2]
[353620676,1739962239885,-500.0,0.00013863,2]
[353620677,1739962239894,-500.0,0.00013863,2]
[353620678,1739962239906,-1875.75,0.00013863,2]
[353620679,1739962239915,-500.0,0.00013863,2]
[353620680,1739962239926,-1268.03,0.00013863,2]
[353620681,1739962239935,-500.0,0.00013863,2]
[353620682,1739962239945,-500.0,0.00013863,2]
[353620683,1739962239955,-500.0,0.00013863,2]
[353620684,1739962239966,-192.0,0.00013905,2]
[353620685,1739962239976,-500.0,0.00013914,2]
[353620686,1739962239986,-500.0,0.00013914,2]
[353620687,1739962239996,-500.0,0.00013945,2]
[353620688,1739962240006,-610.32,0.00013945,2]
[353620690,1739962240016,-500.0,0.00013945,2]
[353620691,1739962240026,-500.0,0.00013945,2]
[353620692,1739962240035,-500.0,0.00013945,2]
[353620693,1739962240046,-180.50694461,0.00013945,2]
[353620694,1739962240056,-500.0,0.00013945,2]
[353620695,1739962240065,-500.0,0.00013945,2]
[353620696,1739962240075,-500.0,0.00013945,2]
[353620697,1739962240085,-500.0,0.00013945,2]
[353620698,1739962240095,-1875.75,0.00013945,2]
[353620699,1739962240105,-500.0,0.00013945,2]
[353620700,1739962240115,-1268.03,0.00013945,2]
[353620702,1739962240125,-500.0,0.00013945,2]
[353620704,1739962240136,-500.0,0.00013945,2]
[353620706,1739962240146,-500.0,0.00013945,2]
[353620707,1739962240156,-500.0,0.00013972,2]
[353620708,1739962240166,-503.6147836,0.00013987,2]
[353620709,1739962240176,-500.0,0.00013987,2]
[353620710,1739962240186,-500.0,0.00014027,2]
[353620711,1739962240196,-610.32,0.00014027,2]
[353620712,1739962240207,-500.0,0.00014027,2]
[353620713,1739962240217,-500.0,0.00014027,2]
[353620714,1739962240228,-212.67583544,0.00014027,2]
[353620715,1739962240238,-168.02248043,0.00014027,2]
[353620716,1739962240248,-500.0,0.00014027,2]
[353620717,1739962240258,-500.0,0.00014027,2]
[353620718,1739962240267,-1875.75,0.00014027,2]
[353620719,1739962240277,-500.0,0.00014027,2]
[353620720,1739962240287,-1268.03,0.00014027,2]
[353620721,1739962240297,-500.0,0.00014027,2]
[353620722,1739962240307,-487.61926382,0.00014027,2]
[353620723,1739962240318,-374.38304364,0.00014027,2]
[353620724,1739962240328,-500.0,0.00014109,2]
[353620725,1739962240338,-610.32,0.00014109,2]
[353620726,1739962240348,-500.0,0.00014109,2]
[353620727,1739962240369,-540.26902174,0.00014109,2]
[353620728,1739962240380,-500.0,0.00014109,2]
[353620729,1739962240391,-500.0,0.00014109,2]
[353620730,1739962240402,-1875.75,0.00014109,2]
[353620731,1739962240413,-500.0,0.00014109,2]
[353620732,1739962240423,-1268.03,0.00014109,2]
[353620733,1739962240433,-500.0,0.00014109,2]
[353620734,1739962240443,-179.65864857,0.00014112,2]
[353620736,1739962240454,-500.0,0.00014191,2]
[353620737,1739962240465,-610.32,0.00014191,2]
[353620738,1739962240475,-500.0,0.00014191,2]
[353620739,1739962240486,-500.0,0.00014191,2]
[353620740,1739962240496,-500.0,0.00014191,2]
[353620741,1739962240506,-1875.75,0.00014191,2]
[353620742,1739962240517,-500.0,0.00014191,2]
[353620743,1739962240527,-1268.03,0.00014191,2]
[353620744,1739962240537,-500.0,0.00014191,2]
[353620745,1739962240547,-1007.8268122,0.00014247,2]
[353620746,1739962240557,-500.0,0.00014273,2]
[353620747,1739962240567,-610.32,0.00014273,2]
[353620748,1739962240581,-500.0,0.00014273,2]
[353620749,1739962240592,-499.18164271,0.00014273,2]
[353620751,1739962240603,-500.0,0.00014273,2]
[353620752,1739962240613,-1875.75,0.00014273,2]
[353620753,1739962240623,-500.0,0.00014273,2]
[353620754,1739962240633,-1268.03,0.00014273,2]
[353620755,1739962240644,-500.0,0.00014273,2]
[353620756,1739962240655,-416.07537007,0.00014356,2]
[353620757,1739962240666,-610.32,0.00014356,2]
[353620758,1739962240676,-500.0,0.00014356,2]
[353620759,1739962240686,-500.0,0.00014356,2]
[353620760,1739962240696,-1875.75,0.00014356,2]
[353620761,1739962240706,-500.0,0.00014356,2]
[353620762,1739962240717,-1268.03,0.00014356,2]
[353620763,1739962240727,-500.0,0.00014356,2]
[353620764,1739962240737,-610.32,0.00014438,2]
[353620765,1739962240747,-500.0,0.00014438,2]
[353620766,1739962240758,-500.0,0.00014438,2]
[353620767,1739962240768,-1875.75,0.00014438,2]
[353620768,1739962240778,-500.0,0.00014438,2]
[353620769,1739962240789,-1268.03,0.00014438,2]
[353620770,1739962240799,-500.0,0.00014438,2]
[353620771,1739962240809,-700.0,0.00014438,2]
[353620772,1739962240819,-1034.55773278,0.00014462,2]
[353620773,1739962240830,-1000.0,0.00014462,2]
[353620774,1739962240840,-610.32,0.0001452,2]
[353620775,1739962240850,-500.0,0.0001452,2]
[353620776,1739962240861,-500.0,0.0001452,2]
[353620777,1739962240871,-1875.75,0.0001452,2]
[353620778,1739962240882,-500.0,0.0001452,2]
[353620779,1739962240892,-1268.03,0.0001452,2]
[353620780,1739962240902,-500.0,0.0001452,2]
[353620781,1739962240912,-1000.0,0.00014535,2]
[353620782,1739962240923,-823.0,0.00014543,2]
[353620783,1739962240933,-156.139,0.00014555,2]
[353620784,1739962240943,-610.32,0.00014602,2]
[353620785,1739962240953,-500.0,0.00014602,2]
[353620786,1739962240963,-500.0,0.00014602,2]
[353620787,1739962240974,-1875.75,0.00014602,2]
[353620788,1739962240984,-474.48,0.00014602,2]
[353620789,1739962240994,-1268.03,0.00014602,2]
[353620790,1739962241004,-500.0,0.00014602,2]
[353620791,1739962241014,-610.32,0.00014684,2]
[353620792,1739962241025,-500.0,0.00014684,2]
[353620793,1739962241035,-404.38677408,0.00014684,2]
[353620794,1739962241045,-1875.75,0.00014684,2]
[353620795,1739962241055,-1268.03,0.00014684,2]
[353620796,1739962241065,-649.53451707,0.00014684,2]
[353620797,1739962241076,-610.32,0.00014767,2]
[353620798,1739962241086,-271.32,0.00014767,2]
[353620799,1739962241096,-1875.75,0.00014767,2]
[353620800,1739962241106,-1268.03,0.00014767,2]
[353620801,1739962241116,-610.32,0.00014849,2]
[353620802,1739962241125,-1875.75,0.00014849,2]
[353620803,1739962241135,-1268.03,0.00014849,2]
[353620804,1739962241145,-52374.9961868,0.000149,2]
[353620805,1739962241156,-610.32,0.00014931,2]
[353620806,1739962241165,-1875.75,0.00014931,2]
[353620807,1739962241175,-1268.03,0.00014931,2]
[353620808,1739962241185,-610.32,0.00015013,2]
[353620809,1739962241194,-1875.75,0.00015013,2]
[353620810,1739962241204,-1268.03,0.00015013,2]
[353620811,1739962241215,-610.32,0.00015095,2]
[353620812,1739962241224,-1875.75,0.00015095,2]
[353620813,1739962241234,-1268.03,0.00015095,2]
[353620814,1739962241244,-610.32,0.00015178,2]
[353620815,1739962241253,-1875.75,0.00015178,2]
[353620816,1739962241264,-1268.03,0.00015178,2]
[353620817,1739962241273,-168.92942206,0.00015205,2]
[353620818,1739962241283,-610.32,0.0001526,2]
[353620819,1739962241292,-1875.75,0.0001526,2]
[353620820,1739962241302,-1268.03,0.0001526,2]
[353620821,1739962241311,-2750.59859815,0.00015314,2]
[353620822,1739962241321,-610.32,0.00015342,2]
[353620823,1739962241331,-1875.75,0.00015342,2]
[353620824,1739962241341,-1268.03,0.00015342,2]
[353620825,1739962241350,-610.32,0.00015424,2]
[353620826,1739962241360,-1875.75,0.00015424,2]
[353620827,1739962241370,-1268.03,0.00015424,2]
[353620828,1739962241379,-26187.4980934,0.00015454,2]
[353620829,1739962241389,-503.62720318,0.00015464,2]
[353620830,1739962241399,-610.32,0.00015506,2]
[353620831,1739962241409,-1875.75,0.00015506,2]
[353620832,1739962241417,-1268.03,0.00015506,2]
[353620833,1739962241426,-1150.54605966,0.00015536,2]
[353620834,1739962241435,-610.39,0.00015589,2]
[353620835,1739962241444,-1875.9124545,0.00015589,2]
[353620836,1739962241454,-1268.09597418,0.00015589,2]
[353620837,1739962241463,-151.0,0.000157,2]
[353620838,1739962241473,-259.085608,0.00015775,2]
[353620839,1739962241483,-700.0,0.00015808,2]
[353620840,1739962241492,-1152.0,0.00015981,2]
[353620841,1739962241501,-151.0,0.000161,2]
[353620842,1739962241512,-160.0,0.00016128,3]
[353620843,1739962241522,-52374.9961868,0.0001618,2]
[353620844,1739962241531,-104749.992374,0.0001619,2]